fUSD/lending_fUSD_20260408
["ID","MTS","AMOUNT","RATE_DAILY","PERIOD"]
[420098167,1775675447205,-526.27411327,0.00013002,2]
[420098168,1775675447584,-37966.56020238,0.00013002,2]
[420098169,1775675447594,-301.85770587,0.000131,2]
[420098170,1775675447604,-152.0,0.000131,2]
[420098171,1775675447614,-1527.0,0.000131,2]
[420098172,1775675447624,-152.0,0.000131,2]
[420098173,1775675447634,-1527.0,0.000131,2]
[420098174,1775675447643,-152.0,0.000131,2]
[420098175,1775675447653,-1527.0,0.000131,2]
[420098176,1775675447662,-152.0,0.000131,2]
[420098177,1775675447671,-1527.0,0.000131,2]
[420098178,1775675447681,-152.0,0.000131,2]
[420098179,1775675447690,-1527.0,0.000131,2]
[420098180,1775675447700,-1527.0,0.000131,2]
[420098181,1775675447710,-1527.0,0.000131,2]
[420098182,1775675447720,-1527.0,0.000131,2]
[420098183,1775675447729,-1527.0,0.000131,2]
[420098184,1775675447739,-1527.0,0.000131,2]
[420098185,1775675447749,-1527.0,0.000131,2]
[420098186,1775675447767,-501.0,0.000131,2]
[420098187,1775675447778,-1866.66,0.00013122,2]
[420098188,1775675447788,-323.43,0.00013124,2]
[420098189,1775675447798,-1600.0,0.00013136,2]
[420098190,1775675447808,-1328.27659266,0.00013267,2]
[420098191,1775675447818,-200.0,0.00013267,2]
[420098192,1775675447827,-200.0,0.00013288,2]
[420098193,1775675447836,-253.29682424,0.00013409,2]
[420098194,1775675447846,-2000.0,0.00013422,2]
[420098195,1775675447856,-3240.0,0.00013425,2]
[420098196,1775675447865,-20744.48137946,0.0001344,2]
[420098197,1775675447875,-4007.52655937,0.0001344,2]
[420098198,1775675447895,-548.22921232,0.0001344,2]
[420098199,1775675447907,-1302.97179547,0.0001344,2]
[420098200,1775675447919,-6754.41849012,0.0001344,2]
[420098201,1775675447930,-1422.90369833,0.0001344,2]
[420098202,1775675447941,-335.819307,0.0001344,2]
[420098203,1775675998169,13500.0,8.9e-05,3]
[420098204,1775676000249,27100.0,9e-05,3]
[420098205,1775676002351,20681.27418975,0.0001,3]
[420098207,1775676356265,-299.0,0.00011991,23]
[420098208,1775676392768,-1156.46347445,0.00015295,30]
[420098209,1775676441669,10500.0,8.8e-05,3]
[420098210,1775676443919,21000.0,8.9e-05,3]
[420098211,1775676446752,31500.0,9e-05,3]
[420098212,1775676449444,200.0,8.519e-05,2]
[420098213,1775676456211,207.05,4.26e-05,2]
[420098214,1775676456446,207.05,8.519e-05,2]
[420098215,1775676460392,-10000.0,0.00015393,15]
[420098216,1775676460423,-10000.0,0.00015393,15]
[420098217,1775676460450,-10000.0,0.00015393,15]
[420098218,1775676554102,-539.0,8.697e-05,2]
[420098219,1775676561773,-127.89,8.697e-05,2]
[420098220,1775676561800,-250.0,8.807e-05,2]
[420098221,1775676561827,-377.0,8.886e-05,2]
[420098222,1775676561854,-500.0,8.917e-05,2]
[420098223,1775676561879,-1200.0,8.938e-05,2]
[420098224,1775676561906,-300.0,8.938e-05,2]
[420098225,1775676561932,-150.0,8.939e-05,2]
[420098226,1775676561957,-3367.59256486,8.939e-05,2]
[420098227,1775676561982,-1500.38106514,8.94e-05,2]
[420098228,1775676571202,-55709.1584,8.94e-05,2]
[420098229,1775676590657,-5533.0,0.000107,5]
[420098230,1775676590683,-782.0,0.00010813,5]
[420098231,1775676590710,-1300.0,0.00010813,5]
[420098232,1775676621989,101.53652555,0.000108,5]
[420098233,1775676632055,-410.6584033,8.84e-05,2]
[420098240,1775676638112,-1499589.3415967,8.84e-05,2]
[420098241,1775676638122,-300.0,8.939e-05,2]
[420098242,1775676638133,-1200.0,8.939e-05,2]
[420098243,1775676638143,-500.0,8.939e-05,2]
[420098244,1775676638152,-500.0,8.939e-05,2]
[420098245,1775676638161,-500.0,8.939e-05,2]
[420098246,1775676638171,-356.92116473,8.939e-05,2]
[420098247,1775676638180,-500.0,8.939e-05,2]
[420098248,1775676638189,-500.0,8.939e-05,2]
[420098249,1775676638199,-500.0,8.939e-05,2]
[420098250,1775676638208,-500.0,8.939e-05,2]
[420098251,1775676638217,-250.0,8.94e-05,2]
[420098252,1775676638227,-37060.17053486,8.94e-05,2]
[420098253,1775676638236,-2500.0,8.998e-05,2]
[420098254,1775676638246,-150.0,8.999e-05,2]
[420098255,1775676638256,-6135.22061868,9e-05,2]
[420098256,1775676638265,-5000.0,9e-05,2]
[420098257,1775676638275,-5000.0,9e-05,2]
[420098258,1775676638284,-5000.0,9e-05,2]
[420098259,1775676638294,-5000.0,9e-05,2]
[420098260,1775676638304,-153.79322456,9e-05,2]
[420098261,1775676638314,-500.0,9.073e-05,2]
[420098262,1775676638324,-500.0,9.073e-05,2]
[420098263,1775676638333,-500.0,9.073e-05,2]
[420098264,1775676638342,-500.47003133,9.073e-05,2]
[420098265,1775676638351,-500.0,9.073e-05,2]
[420098266,1775676638361,-500.0,9.073e-05,2]
[420098267,1775676638370,-151.0,9.096e-05,2]
[420098268,1775676638380,-151.0,9.096e-05,2]
[420098269,1775676638390,-151.0,9.096e-05,2]
[420098270,1775676638400,-151.0,9.096e-05,2]
[420098271,1775676638410,-151.0,9.096e-05,2]
[420098272,1775676638420,-151.0,9.096e-05,2]
[420098273,1775676638430,-167.54354,9.096e-05,2]
[420098274,1775676638439,-14114.9,9.096e-05,2]
[420098275,1775676638449,-150.99,9.096e-05,2]
[420098276,1775676638459,-299.99,9.096e-05,2]
[420098277,1775676638469,-9999.99,9.096e-05,2]
[420098278,1775676638478,-5961.35,9.096e-05,2]
[420098279,1775676638488,-756.46,9.096e-05,2]
[420098280,1775676638498,-654.79,9.096e-05,2]
[420098281,1775676638508,-2130.39,9.096e-05,2]
[420098282,1775676638518,-9999.99,9.096e-05,2]
[420098283,1775676638528,-150.99,9.096e-05,2]
[420098284,1775676638538,-33041.7805,9.099e-05,2]
[420098285,1775676638548,-153.79322456,9.099e-05,2]
[420098286,1775676638558,-606.0,9.284e-05,2]
[420098287,1775676638567,-457.0,9.302e-05,2]
[420098289,1775676638577,-1940.0,9.321e-05,2]
[420098291,1775676638588,-587.0,9.428e-05,2]
[420098293,1775676638598,-193.0,9.566e-05,2]
[420098295,1775676638608,-250.0,9.566e-05,2]
[420098297,1775676638618,-500.0,9.567e-05,2]
[420098299,1775676638628,-150.0,9.6e-05,2]
[420098301,1775676638638,-1000.0,9.621e-05,2]
[420098303,1775676638648,-1000.0,9.621e-05,2]
[420098305,1775676638658,-1000.0,9.621e-05,2]
[420098307,1775676638668,-501.90683054,9.621e-05,2]
[420098309,1775676638679,-1850.0,9.646e-05,2]
[420098311,1775676638689,-857.0,9.666e-05,2]
[420098313,1775676638699,-1295.0,9.685e-05,2]
[420098315,1775676638709,-5000.0,9.809e-05,2]
[420098317,1775676638719,-250.0,9.833e-05,2]
[420098319,1775676638729,-420.0,9.833e-05,2]
[420098321,1775676638739,-1680.0,9.833e-05,2]
[420098323,1775676638748,-500.0,9.841e-05,2]
[420098325,1775676638758,-255.0,9.899e-05,2]
[420098327,1775676638769,-151.0,0.0001,2]
[420098329,1775676638779,-151.0,0.0001,2]
[420098331,1775676638790,-151.0,0.0001,2]
[420098333,1775676638800,-151.0,0.0001,2]
[420098335,1775676638811,-200.0,0.0001,2]
[420098337,1775676638821,-151.0,0.0001,2]
[420098340,1775676638830,-151.0,0.0001,2]
[420098343,1775676638839,-151.0,0.0001,2]
[420098345,1775676638848,-151.0,0.0001,2]
[420098347,1775676638858,-151.0,0.0001,2]
[420098349,1775676638867,-151.0,0.0001,2]
[420098351,1775676638877,-151.0,0.0001,2]
[420098353,1775676638886,-151.0,0.0001,2]
[420098355,1775676638897,-151.0,0.0001,2]
[420098357,1775676638907,-151.0,0.0001,2]
[420098360,1775676638917,-151.0,0.0001,2]
[420098361,1775676638927,-500.0,0.0001,2]
[420098363,1775676638937,-151.0,0.0001,2]
[420098365,1775676638947,-500.0,0.0001,2]
[420098368,1775676638957,-500.0,0.0001,2]
[420098370,1775676638967,-151.0,0.0001,2]
[420098372,1775676638977,-500.0,0.0001,2]
[420098375,1775676638995,-500.0,0.0001,2]
[420098377,1775676639012,-151.0,0.0001,2]
[420098379,1775676639021,-500.0,0.0001,2]
[420098381,1775676639030,-500.0,0.0001,2]
[420098383,1775676639041,-151.0,0.0001,2]
[420098385,1775676639052,-500.0,0.0001,2]
[420098387,1775676639061,-500.0,0.0001,2]
[420098389,1775676639071,-151.0,0.0001,2]
[420098391,1775676639080,-500.0,0.0001,2]
[420098393,1775676639090,-500.0,0.0001,2]
[420098395,1775676639100,-151.0,0.0001,2]
[420098397,1775676639110,-500.0,0.0001,2]
[420098399,1775676639120,-500.0,0.0001,2]
[420098401,1775676639130,-151.0,0.0001,2]
[420098403,1775676639141,-500.0,0.0001,2]
[420098405,1775676639151,-151.0,0.0001,2]
[420098407,1775676639161,-500.0,0.0001,2]
[420098410,1775676639171,-151.0,0.0001,2]
[420098412,1775676639181,-500.0,0.0001,2]
[420098414,1775676639191,-500.0,0.0001,2]
[420098416,1775676639201,-151.0,0.0001,2]
[420098418,1775676639210,-500.0,0.0001,2]
[420098420,1775676639220,-500.0,0.0001,2]
[420098422,1775676639229,-151.0,0.0001,2]
[420098423,1775676639240,-500.0,0.0001,2]
[420098426,1775676639250,-500.0,0.0001,2]
[420098428,1775676639260,-151.0,0.0001,2]
[420098430,1775676639270,-500.0,0.0001,2]
[420098431,1775676639280,-151.0,0.0001,2]
[420098433,1775676639289,-500.0,0.0001,2]
[420098435,1775676639299,-500.0,0.0001,2]
[420098437,1775676639308,-151.0,0.0001,2]
[420098440,1775676639318,-500.0,0.0001,2]
[420098442,1775676639328,-500.0,0.0001,2]
[420098444,1775676639337,-500.0,0.0001,2]
[420098446,1775676639347,-500.0,0.0001,2]
[420098448,1775676639357,-500.0,0.0001,2]
[420098450,1775676639367,-500.0,0.0001,2]
[420098452,1775676639377,-1199.20597015,0.0001,2]
[420098454,1775676639387,-151.0,0.0001,2]
[420098456,1775676639398,-151.0,0.0001,2]
[420098458,1775676639409,-151.0,0.0001,2]
[420098460,1775676639419,-151.0,0.0001,2]
[420098462,1775676639428,-152.64494361,0.0001,2]
[420098464,1775676639438,-151.0,0.0001,2]
[420098466,1775676639448,-151.0,0.0001,2]
[420098468,1775676639459,-151.0,0.0001,2]
[420098470,1775676639470,-538.80518114,0.0001,2]
[420098472,1775676639480,-221.60704552,0.0001,2]
[420098475,1775676639497,-500.0,0.00010115,2]
[420098477,1775676639507,-150.0,0.00010138,2]
[420098479,1775676639517,-150.0,0.00010139,2]
[420098482,1775676639528,-178.551485,0.0001014,2]
[420098484,1775676639538,-1001.68603262,0.00010168,2]
[420098486,1775676639549,-1500.0,0.00010168,2]
[420098488,1775676639559,-1500.0,0.00010168,2]
[420098490,1775676639571,-151.0,0.00010216,2]
[420098492,1775676639581,-151.0,0.00010216,2]
[420098494,1775676639592,-151.0,0.00010216,2]
[420098496,1775676639603,-382.92,0.00010365,2]
[420098498,1775676639616,-38293.0,0.000104,2]
[420098500,1775676639628,-200.0,0.00010548,2]
[420098502,1775676639639,-1243.57659104,0.00010548,2]
[420098504,1775676639652,-5533.0,0.000106,3]
[420098507,1775676639662,-200.0,0.00010667,2]
[420098509,1775676639673,-578.20924308,0.00010667,2]
[420098511,1775676639683,-181.08010149,0.00010667,2]
[420098513,1775676639693,-8260.13072239,0.00010667,2]
[420098515,1775676639703,-500.0,0.00010667,2]
[420098517,1775676639714,-396.0429306,0.00010667,2]
[420098519,1775676639725,-743.50770149,0.00010667,2]
[420098521,1775676639735,-151.0,0.00010667,2]
[420098523,1775676639746,-174.61919141,0.00010667,2]
[420098525,1775676639756,-170.0,0.00010667,2]
[420098527,1775676639767,-170.0,0.00010667,2]
[420098529,1775676639777,-170.0,0.00010667,2]
[420098532,1775676639787,-170.0,0.00010667,2]
[420098534,1775676639797,-170.0,0.00010667,2]
[420098536,1775676639807,-170.0,0.00010667,2]
[420098538,1775676639817,-170.0,0.00010667,2]
[420098540,1775676639826,-170.0,0.00010667,2]
[420098542,1775676639836,-170.0,0.00010667,2]
[420098544,1775676639846,-170.0,0.00010667,2]
[420098546,1775676639857,-170.0,0.00010667,2]
[420098548,1775676639866,-170.0,0.00010667,2]
[420098550,1775676639875,-170.0,0.00010667,2]
[420098552,1775676639885,-170.0,0.00010667,2]
[420098554,1775676639895,-170.0,0.00010667,2]
[420098556,1775676639905,-392.57733286,0.00010716,2]
[420098558,1775676639915,-2000.0,0.00010716,2]
[420098560,1775676639925,-7524.36708684,0.00010722,2]
[420098562,1775676639935,-500.0,0.00010722,2]
[420098564,1775676639945,-151.0,0.00010722,2]
[420098566,1775676639955,-500.0,0.00010777,2]
[420098568,1775676639964,-151.0,0.00010777,2]
[420098570,1775676639975,-5431.46347445,0.000108,5]
[420098573,1775676639991,-160.0,0.00010813,3]
[420098575,1775676640001,-156.0,0.00010813,3]
[420098577,1775676640012,-587.0,0.00010816,2]
[420098579,1775676640023,-2351.0,0.00010816,2]
[420098581,1775676640033,-500.0,0.00010832,2]
[420098583,1775676640044,-151.0,0.00010832,2]
[420098585,1775676640054,-500.0,0.00010887,2]
[420098587,1775676640064,-151.0,0.00010887,2]
[420098589,1775676640074,-433.0,0.00010889,2]
[420098591,1775676640085,-5125.54889018,0.000109,2]
[420098593,1775676640095,-166.66,0.00010937,2]
[420098595,1775676640106,-500.0,0.00010942,2]
[420098597,1775676640116,-151.0,0.00010942,2]
[420098599,1775676640126,-500.0,0.00010959,2]
[420098601,1775676640137,-185.55,0.00010959,2]
[420098603,1775676640148,-150.0,0.00010959,2]
[420098605,1775676640158,-500.0,0.00010997,2]
[420098607,1775676640168,-151.0,0.00010997,2]
[420098609,1775676640178,-172.7472,0.00011,2]
[420098612,1775676640188,-500.0,0.00011052,2]
[420098614,1775676640198,-151.0,0.00011052,2]
[420098616,1775676640209,-33915.0,0.00011068,2]
[420098618,1775676640219,-1000.0,0.00011075,2]
[420098620,1775676640230,-200.0,0.00011096,2]
[420098622,1775676640241,-332.61611281,0.00011096,2]
[420098624,1775676640252,-18461.29189229,0.00011099,2]
[420098626,1775676640264,-18461.29189227,0.00011099,2]
[420098628,1775676640274,-18461.29189227,0.00011099,2]
[420098630,1775676640285,-500.0,0.00011107,2]
[420098632,1775676640296,-151.0,0.00011107,2]
[420098634,1775676640307,-500.0,0.00011162,2]
[420098636,1775676640318,-151.0,0.00011162,2]
[420098638,1775676640329,-11846.04526511,0.00011172,2]
[420098641,1775676640340,-18461.29189227,0.00011203,2]
[420098643,1775676640350,-200.0,0.00011215,2]
[420098645,1775676640361,-187.78006525,0.00011215,2]
[420098647,1775676640371,-771.01748645,0.00011215,2]
[420098649,1775676640381,-181.08010149,0.00011215,2]
[420098651,1775676640392,-500.0,0.00011217,2]
[420098653,1775676640402,-151.0,0.00011217,2]
[420098655,1775676640412,-2500.0,0.00011264,2]
[420098657,1775676640422,-500.0,0.00011272,2]
[420098659,1775676640432,-151.0,0.00011272,2]
[420098661,1775676640442,-548.68,0.0001129,2]
[420098663,1775676640452,-800.0,0.00011294,2]
[420098665,1775676640464,-297.37,0.00011294,2]
[420098667,1775676640474,-576.17,0.00011295,2]
[420098669,1775676640486,-548.68,0.00011297,2]
[420098672,1775676640497,-166.66,0.00011298,2]
[420098674,1775676640507,-151.0,0.00011327,2]
[420098676,1775676640517,-160.0,0.00011469,2]
[420098678,1775676640527,-211.377713,0.00011469,2]
[420098680,1775676640536,-262.755427,0.00011469,2]
[420098682,1775676640546,-200.0,0.00011644,2]
[420098684,1775676640557,-166.66,0.00011659,2]
[420098686,1775676640567,-160.0,0.00011698,2]
[420098688,1775676640578,-619.242768,0.00011698,2]
[420098690,1775676640588,-1078.485536,0.00011698,2]
[420098692,1775676640598,-162.217309,0.00011698,2]
[420098694,1775676640609,-200.0,0.00011763,2]
[420098696,1775676640619,-152.16310618,0.00011763,2]
[420098698,1775676640630,-799.54513345,0.00011763,2]
[420098700,1775676640640,-187.78006525,0.00011763,2]
[420098702,1775676640650,-306.0,0.000118,2]
[420098704,1775676640661,-1000.0,0.000118,2]
[420098706,1775676640671,-313.0,0.000118,2]
[420098708,1775676640681,-878.0,0.000118,2]
[420098711,1775676640691,-2076.04025023,0.00011812,2]
[420098713,1775676640701,-203.691253,0.00011815,2]
[420098715,1775676640711,-160.0,0.00011815,2]
[420098717,1775676640721,-219.902934,0.00011815,2]
[420098719,1775676640731,-279.805868,0.00011815,2]
[420098721,1775676640741,-1600.0,0.0001182,2]
[420098723,1775676640752,-823.0,0.00011898,2]
[420098725,1775676640761,-3292.0,0.00011898,2]
[420098727,1775676640771,-18461.29189227,0.00011937,2]
[420098729,1775676640781,-736.0,0.00011978,2]
[420098731,1775676640792,-166.66,0.0001202,2]
[420098733,1775676640802,-160.0,0.00012038,2]
[420098735,1775676640812,-445.171898,0.00012038,2]
[420098737,1775676640823,-730.343797,0.00012038,2]
[420098739,1775676640833,-288.242337,0.00012042,2]
[420098741,1775676640843,-14458.54659599,0.00012056,2]
[420098743,1775676640853,-994.01934182,0.00012112,2]
[420098745,1775676640864,-2835.5,0.00012171,2]
[420098747,1775676640874,-2835.5,0.00012171,2]
[420098749,1775676640884,-2835.5,0.00012171,2]
[420098751,1775676640894,-2835.5,0.00012171,2]
[420098753,1775676640904,-2835.5,0.00012171,2]
[420098756,1775676640914,-666.89,0.00012175,2]
[420098757,1775676640924,-200.0,0.00012192,2]
[420098759,1775676640934,-150.0,0.00012279,2]
[420098761,1775676640944,-150.0,0.00012279,2]
[420098763,1775676640954,-150.0,0.00012282,2]
[420098765,1775676640964,-844.421956,0.00012283,2]
[420098767,1775676640974,-200.0,0.00012311,2]
[420098769,1775676640985,-637.10922781,0.00012311,2]
[420098771,1775676640995,-194.72792766,0.00012311,2]
[420098773,1775676641004,-166.66,0.00012381,2]
[420098775,1775676641014,-198.9441,0.000124,2]
[420098777,1775676641025,-299.867637,0.00012406,2]
[420098779,1775676641035,-150.0,0.00012432,2]
[420098781,1775676641044,-1264.0,0.00012432,2]
[420098783,1775676641056,-1217.0,0.00012432,2]
[420098785,1775676641065,-926.0,0.00012432,2]
[420098786,1775676641075,-6022.0,0.00012432,2]
[420098787,1775676641085,-1347.0,0.00012432,2]
[420098788,1775676641096,-538.80518112,0.0001245,2]
[420098789,1775676641106,-1000.0,0.00012452,2]
[420098790,1775676641116,-607.052589,0.0001264,2]
[420098791,1775676641126,-2000.0,0.00012669,2]
[420098792,1775676641136,-18461.29189227,0.00012672,2]
[420098793,1775676641145,-160.0,0.00012686,2]
[420098794,1775676641166,-160.0,0.00012686,2]
[420098795,1775676641177,-152.45672918,0.00012739,2]
[420098796,1775676641187,-200.0,0.0001274,2]
[420098797,1775676641198,-166.66,0.00012742,2]
[420098798,1775676641208,-382.92,0.00012748,2]
[420098799,1775676641218,-425.34731811,0.00012754,2]
[420098800,1775676641229,-200.0,0.00012859,2]
[420098801,1775676641240,-201.93286099,0.00012859,2]
[420098802,1775676641250,-42000.0,0.000129,4]
[420098803,1775676641261,-565.60270226,0.00012982,2]
[420098804,1775676641272,-250.0,0.00013,2]
[420098805,1775676641283,-151.0,0.00013031,2]
[420098806,1775676641293,-5170.6243377,0.00013034,2]
[420098807,1775676641303,-151.0,0.00013034,2]
[420098808,1775676641313,-151.0,0.00013034,2]
[420098809,1775676641324,-151.0,0.00013034,2]
[420098810,1775676641335,-151.0,0.00013034,2]
[420098811,1775676641345,-151.0,0.00013034,2]
[420098812,1775676641355,-151.0,0.00013034,2]
[420098813,1775676641365,-151.0,0.00013034,2]
[420098815,1775676641376,-151.0,0.00013034,2]
[420098817,1775676641386,-151.0,0.00013034,2]
[420098819,1775676641396,-151.0,0.00013034,2]
[420098822,1775676641407,-216.387975,0.00013034,2]
[420098824,1775676641418,-216.387975,0.00013034,2]
[420098826,1775676641428,-216.387975,0.00013034,2]
[420098885,1775676642025,-216.387975,0.00013034,2]
[420098887,1775676642035,-245.217068,0.00013034,2]
[420098889,1775676642044,-245.217068,0.00013034,2]
[420098891,1775676642054,-245.217068,0.00013034,2]
[420098893,1775676642064,-245.217068,0.00013034,2]
[420098895,1775676642074,-151.0,0.00013034,2]
[420098897,1775676642084,-1113.0,0.00013088,2]
[420098899,1775676642093,-4609.0,0.00013088,2]
[420098901,1775676642103,-501.0,0.000131,2]
[420098903,1775676642112,-1252.0,0.00013175,2]
[420098905,1775676642122,-200.0,0.00013288,2]
[420098907,1775676642131,-1600.0,0.00013298,2]
[420098909,1775676642141,-253.29,0.00013308,2]
[420098911,1775676642152,-2000.0,0.0001331,2]
[420098913,1775676642161,-2000.0,0.0001331,2]
[420098915,1775676642171,-2000.0,0.0001331,2]
[420098917,1775676642180,-2000.0,0.0001333,2]
[420098919,1775676642190,-599.60298507,0.00013406,2]
[420098921,1775676642200,-18461.29189227,0.00013406,2]
[420098923,1775676642209,-200.0,0.00013407,2]
[420098925,1775676642219,-209.40437684,0.00013407,2]
[420098927,1775676642229,-208.37237059,0.00013425,2]
[420098929,1775676642239,-500.0,0.00013425,2]
[420098931,1775676642249,-500.0,0.00013425,2]
[420098933,1775676642258,-182.15202066,0.00013425,2]
[420098935,1775676642268,-500.0,0.00013425,2]
[420098937,1775676642277,-150.0,0.00013425,2]
[420098939,1775676642287,-595.10163207,0.00013425,2]
[420098941,1775676642297,-500.0,0.00013425,2]
[420098943,1775676642307,-150.0,0.00013425,2]
[420098945,1775676642317,-150.0,0.00013425,2]
[420098947,1775676642327,-500.0,0.00013425,2]
[420098949,1775676642337,-150.0,0.00013425,2]
[420098951,1775676642347,-500.0,0.00013425,2]
[420098953,1775676642357,-150.0,0.00013425,2]
[420098955,1775676642367,-500.0,0.00013425,2]
[420098957,1775676642377,-150.0,0.00013425,2]
[420098959,1775676642387,-250.0,0.00013425,2]
[420098961,1775676642398,-165.86332065,0.00013425,2]
[420098963,1775676642409,-500.0,0.00013425,2]
[420098965,1775676642419,-150.0,0.00013425,2]
[420098967,1775676642429,-500.0,0.00013425,2]
[420098969,1775676642441,-150.0,0.00013425,2]
[420098971,1775676642450,-500.0,0.00013425,2]
[420098973,1775676642461,-500.0,0.00013425,2]
[420098975,1775676642471,-500.0,0.00013425,2]
[420098977,1775676642481,-150.0,0.00013425,2]
[420098979,1775676642490,-500.0,0.00013425,2]
[420098981,1775676642501,-150.0,0.00013425,2]
[420098983,1775676642511,-388.39476597,0.00013425,2]
[420098985,1775676642521,-500.0,0.00013425,2]
[420098987,1775676642531,-239.81765262,0.00013425,2]
[420098989,1775676642541,-500.0,0.00013425,2]
[420098991,1775676642550,-500.0,0.00013425,2]
[420098993,1775676642561,-500.0,0.00013425,2]
[420098995,1775676642570,-520.29151548,0.00013425,2]
[420098997,1775676642580,-500.0,0.00013425,2]
[420098999,1775676642590,-500.0,0.00013425,2]
[420099001,1775676642601,-500.0,0.00013425,2]
[420099003,1775676642612,-152.12238144,0.00013425,2]
[420099005,1775676642622,-500.0,0.00013425,2]
[420099007,1775676642631,-500.0,0.00013425,2]
[420099009,1775676642641,-500.0,0.00013425,2]
[420099011,1775676642652,-500.0,0.00013425,2]
[420099013,1775676642661,-500.0,0.00013425,2]
[420099015,1775676642671,-500.0,0.00013425,2]
[420099017,1775676642681,-500.0,0.00013425,2]
[420099019,1775676642691,-500.0,0.00013425,2]
[420099021,1775676642702,-500.0,0.00013425,2]
[420099023,1775676642711,-500.0,0.00013425,2]
[420099025,1775676642721,-500.0,0.00013425,2]
[420099027,1775676642731,-500.0,0.00013425,2]
[420099029,1775676642740,-500.0,0.00013425,2]
[420099032,1775676642750,-500.0,0.00013425,2]
[420099035,1775676642760,-412.62015671,0.00013425,2]
[420099038,1775676642769,-345.51138736,0.00013425,2]
[420099041,1775676642778,-201.16710883,0.00013425,2]
[420099044,1775676642788,-500.0,0.00013425,2]
[420099046,1775676642800,-500.0,0.00013425,2]
[420099048,1775676642810,-500.0,0.00013425,2]
[420099050,1775676642820,-150.0,0.00013425,2]
[420099053,1775676642831,-644.57907854,0.00013425,2]
[420099056,1775676642841,-150.0,0.00013425,2]
[420099058,1775676642852,-150.0,0.00013425,2]
[420099060,1775676642863,-150.0,0.00013425,2]
[420099062,1775676642874,-500.0,0.00013425,2]
[420099064,1775676642885,-150.0,0.00013425,2]
[420099066,1775676642895,-500.0,0.00013425,2]
[420099068,1775676642907,-150.0,0.00013425,2]
[420099071,1775676642918,-500.0,0.00013425,2]
[420099075,1775676642928,-150.0,0.00013425,2]
[420099078,1775676642938,-500.0,0.00013425,2]
[420099082,1775676642948,-150.0,0.00013425,2]
[420099084,1775676642959,-500.0,0.00013425,2]
[420099086,1775676642969,-150.0,0.00013425,2]
[420099088,1775676642978,-500.0,0.00013425,2]
[420099090,1775676642989,-150.0,0.00013425,2]
[420099092,1775676642998,-500.0,0.00013425,2]
[420099094,1775676643008,-150.0,0.00013425,2]
[420099096,1775676643018,-500.0,0.00013425,2]
[420099099,1775676643030,-150.0,0.00013425,2]
[420099101,1775676643041,-500.0,0.00013425,2]
[420099102,1775676643050,-150.0,0.00013425,2]
[420099104,1775676643060,-500.0,0.00013425,2]
[420099106,1775676643071,-150.0,0.00013425,2]
[420099107,1775676643082,-500.0,0.00013425,2]
[420099108,1775676643093,-150.0,0.00013425,2]
[420099109,1775676643107,-509.72471578,0.00013425,2]
[420099110,1775676643118,-150.0,0.00013425,2]
[420099111,1775676643129,-150.0,0.00013425,2]